Cogmind - Beta 12 @@@ ROGUE MODE // 2023.12.26 @ 16:03:51 Player: Ischenous Result: Destroyed by Y-45 Defender with Beam Rifle Performance ------------- Evolutions (1) 500 Regions Visited (3) 600 Robots Destroyed (16) 80 Value Destroyed (561) 561 Prototype IDs (2) 40 Alien Tech Used (0) 0 Bonus (0) 0 TOTAL SCORE: 1781 Bonus ------- None Cogmind --------- Core Integrity 0/400 Matter 300/300 Energy 250/250 System Corruption 0% Temperature Hot (221) Movement Rolling (90) Location -9/Storage Parts ------- > --- POWER (1) -------- Ion Engine > --- PROPULSION (2) --- Armored Wheel > --- UTILITY (4) ------ Small Storage Unit Utility Shielding > --- WEAPON (2) ------- (None) > --- INVENTORY (8) ---- Improved Ion Engine Improved Ion Engine Aluminum Leg Aluminum Leg Peak State ------------ > --- POWER ------------ Ion Engine > --- PROPULSION ------- Armored Wheel Armored Wheel > --- UTILITY ---------- Small Storage Unit Targeting Computer Targeting Computer Utility Shielding > --- WEAPON ----------- Beam Rifle Beam Rifle > --- INVENTORY -------- Improved Ion Engine Aluminum Leg Aluminum Leg [Rating: 13] Favorites ----------- Power Light Ion Engine Engine Light Ion Engine Propulsion Wheel Wheel Wheel Utility Targeting Computer Storage Small Storage Unit Processor Targeting Computer Protection Utility Shielding Weapon Small Laser Energy Gun Small Laser Energy Cannon Advanced Beam Cannon Ballistic Gun Light Assault Rifle Build | -11 -10 -9 -9 ------- Run | Jun Mat Mat Sto Slots Evolved 2 | . . 2 . Power . | . . . . Propulsion . | . . . . Utility 2 | . . 2 . Weapon . | . . . . Parts Attached 21 | 5 3 3 10 Power 3 | 1 1 . 1 Engine 3 | 1 1 . 1 Core . | . . . . Reactor . | . . . . Propulsion 5 | 1 . 1 3 Treads . | . . . . Leg . | . . . . Wheel 5 | 1 . 1 3 Hover . | . . . . Flight . | . . . . Utility 5 | 1 1 2 1 Device . | . . . . Storage 1 | 1 . . . Processor 3 | . 1 2 . Hackware . | . . . . Protection 1 | . . . 1 Artifact . | . . . . Weapon 8 | 2 1 . 5 Energy Gun 6 | 2 1 . 3 Energy Cannon 1 | . . . 1 Ballistic Gun 1 | . . . 1 Ballistic Cannon . | . . . . Launcher . | . . . . Special Weapon . | . . . . Impact Weapon . | . . . . Slashing Weapon . | . . . . Piercing Weapon . | . . . . Special Melee Weapon . | . . . . Unidentified Prototypes . | . . . . Parts Lost 17 | . 2 1 14 Power 2 | . 1 . 1 Propulsion 4 | . . 1 3 Utility 3 | . . . 3 Weapon 8 | . 1 . 7 Highest Loss Streak 8 | . 2 1 8 To Critical Strikes . | . . . . Average Slot Usage (%) 75 | . 75 69 85 Engine 10 | . 13 11 7 Wheel 9 | . 14 3 18 Storage 11 | . 14 11 11 Processor 19 | . 5 22 24 Energy Gun 22 | . 28 22 18 Naked Turns . | . . . . Heaviest Build 17 | 11 11 11 17 Greatest Support 24 | 10 10 10 24 Greatest Overweight (x) 3 | 1 1 3 1 Average Overweight (x) 1 | . 1 1 . Largest Inventory Capacity 8 | 8 8 8 8 Average Capacity 7 | 7 8 8 8 Most Carried 8 | 5 6 8 8 Average Carried 5 | 2 3 5 5 Final Capacity 8 | 8 8 8 8 Final Carried 7 | 3 4 7 4 Class Distribution -------------------- 100% | Mutant Dominant Class ---------------- Mutant | -10/Materials Mutant | -9/Materials Mutant | -9/Storage Resources | -11 -10 -9 -9 ----------- Run | Jun Mat Mat Sto Matter Collected 378 | 250 20 25 83 Remotely . | . . . . Salvage Created 702 | . 90 130 482 Parts 26 | . 6 4 16 Haulers Intercepted . | . . . . Recyclers Shooed . | . . . . Parts Field Recycled . | . . . . Retrieved Matter . | . . . . Parts Self-Destructed . | . . . . Prevented . | . . . . Kills | -11 -10 -9 -9 ------- Run | Jun Mat Mat Sto Combat Hostiles Destroyed 14 | . 2 2 10 Guns 12 | . 2 2 8 Classes Destroyed 4 | . 1 2 1 Worker 1 | . . . 1 Watcher 1 | . . 1 . Grunt 9 | . 2 . 7 Sentry 5 | . . 2 3 Best Kill Streak 4 | . 2 2 4 Combat Bots Only 4 | . 2 1 4 Max Kills in Single Turn 1 | . 1 1 1 Gunslinging . | . . . . Exploded . | . . . . Melee . | . . . . Uniques/NPCs Destroyed . | . . . . Combat | -11 -10 -9 -9 -------- Run | Jun Mat Mat Sto Damage Taken 1647 | . 157 132 1358 Core 447 | . 44 45 358 Absorbed by Shields . | . . . . Redirected to Shielding 23 | . . . 23 Core Remaining (%) 91 | 100 82 . . Volleys Fired 77 | . 9 13 55 Largest 2 | . 2 2 2 Hottest 112 | . 80 90 112 Shots Fired 131 | . 17 26 88 Gun 130 | . 17 26 87 Cannon 1 | . . . 1 Launcher . | . . . . Special . | . . . . Kinetic 8 | . . . 8 Thermal 115 | . 9 26 80 Explosive . | . . . . Electromagnetic 8 | . 8 . . Robot Hit Streak 21 | . 6 8 21 Robot Miss Streak 2 | . 1 1 2 Penetration Max . | . . . . Secondary Targets 4 | . 1 1 2 Max Gunslinging Chain 1 | . 1 1 1 Shots Hit Robots 106 | . 13 22 71 Core Hits 33 | . 4 6 23 Critical Kills . | . . . . Critical Parts Destroyed . | . . . . Critical Strikes 7 | . . 1 6 Burn 7 | . . 1 6 Melee Attacks . | . . . . Impact . | . . . . Slashing . | . . . . Piercing . | . . . . Sneak Attacks . | . . . . Combat Hostiles . | . . . . Follow-up Attacks . | . . . . Damage Inflicted 1333 | . 154 255 924 Guns 1309 | . 154 255 900 Cannons 21 | . . . 21 Explosions . | . . . . Melee . | . . . . Ramming 3 | . . . 3 Kinetic 59 | . . . 59 Thermal 1207 | . 90 255 862 Explosive . | . . . . Electromagnetic 64 | . 64 . . Impact . | . . . . Slashing . | . . . . Piercing . | . . . . Highest Corruption . | . . . . Average Corruption . | . . . . Corruption Purged . | . . . . Corruption Blocked . | . . . . Overload Shots . | . . . . Overflow Damage . | . . . . Projectiles . | . . . . Explosions . | . . . . Melee . | . . . . Knockbacks . | . . . . Impact . | . . . . Kinetic . | . . . . Secondary . | . . . . Self-Inflicted Damage 1 | . . . 1 Shots . | . . . . Rammed 1 | . . . 1 Targets Rammed 1 | . . . 1 Kicked . | . . . . Crushed . | . . . . Highest Temperature 268 | . 161 171 268 Average Temperature 99 | . 94 65 111 Received Heat Transfer 792 | . 84 63 645 Siege Activations . | . . . . Robots Corrupted . | . . . . Combat Hostiles . | . . . . Parts Fried . | . . . . Impact Corruptions . | . . . . Robots Melted 2 | . . . 2 Combat Hostiles 2 | . . . 2 Parts Melted 13 | . . 3 10 Heat Transferred 3567 | . 200 756 2611 Parts Sabotaged . | . . . . Parts Stolen . | . . . . Parts Stripped . | . . . . Power Chain Reactions . | . . . . Missiles Intercepted . | . . . . Alert | -11 -10 -9 -9 ------- Run | Jun Mat Mat Sto Peak Influence 233 | . 79 100 233 Initial 33 | . . 33 18 Average 65 | . 40 57 120 Maximum Alert Level 1 | . . . 1 Low Security (%) 94 | 100 100 100 77 Level 1 5 | . . . 22 Level 2 . | . . . . Level 3 . | . . . . Level 4 . | . . . . Level 5 . | . . . . High Security . | . . . . Max Security . | . . . . Squads Dispatched 4 | . 1 . 3 Investigation 2 | . 1 . 1 Extermination . | . . . . Reinforcement 2 | . . . 2 Assault . | . . . . Garrison . | . . . . Intercept . | . . . . Searches Triggered . | . . . . Construction Impeded . | . . . . Haulers Reinforced . | . . . . Active Scanning Responses . | . . . . Cargo Convoy Interrupts . | . . . . Stealth | -11 -10 -9 -9 --------- Run | Jun Mat Mat Sto Distress Signals 2 | . . 1 1 Communications Jammed . | . . . . Distress Signals . | . . . . Times Spotted 24 | . 3 4 17 Peak Tracking Total 7 | . 3 2 7 Tactical Retreats 1 | . . . 1 Traps | -11 -10 -9 -9 ------- Run | Jun Mat Mat Sto Traps Triggered . | . . . . Indirectly . | . . . . Trap Hack Attempts . | . . . . Triggered . | . . . . Disarmed . | . . . . Reprogrammed . | . . . . Reused . | . . . . Traps Extracted . | . . . . Installed . | . . . . Triggered . | . . . . Machines | -11 -10 -9 -9 ---------- Run | Jun Mat Mat Sto Machines Disabled . | . . . . Max in Single Turn . | . . . . Machines Repaired . | . . . . Machines Sabotaged . | . . . . Overloaded Fab Kills . | . . . . Hacking | -11 -10 -9 -9 --------- Run | Jun Mat Mat Sto Machines Accessed 9 | . 4 3 2 Terminals 9 | . 4 3 2 Fabricators . | . . . . Repair Stations . | . . . . Recycling Units . | . . . . Scanalyzers . | . . . . Garrison Access . | . . . . Total Hacks 25 | . 12 5 8 Successful 14 | . 7 3 4 Failed 11 | . 5 2 4 Catastrophic 1 | . . 1 . Database Lockouts . | . . . . Manual . | . . . . Terminals 25 | . 12 5 8 Fabricators . | . . . . Repair Stations . | . . . . Recycling Units . | . . . . Scanalyzers . | . . . . Garrison Access . | . . . . Terminal Hacks 14 | . 7 3 4 Record 2 | . . 2 . Prototype ID Bank 1 | . 1 . . Emergency Access Points 1 | . . . 1 Alert Level 4 | . 2 1 1 Locate Traps 3 | . 2 . 1 Dispatch Records 1 | . 1 . . Zone Layout 2 | . 1 . 1 Fabricator Hacks . | . . . . Repair Station Hacks . | . . . . Recycling Unit Hacks . | . . . . Scanalyzer . | . . . . Garrison Access Hacks . | . . . . Unauthorized Hacks . | . . . . Terminals . | . . . . Fabricators . | . . . . Repair Stations . | . . . . Recycling Units . | . . . . Scanalyzers . | . . . . Garrison Access . | . . . . Data Cores Recovered . | . . . . Used . | . . . . Hacking Detections 8 | . 3 3 2 Full Trace Events 2 | . 1 . 1 Feedback Events . | . . . . Feedback Blocked . | . . . . Robot Schematics Acquired . | . . . . Robots Built . | . . . . Authchips . | . . . . Time . | . . . . Total Robot Build Rating . | . . . . Part Schematics Acquired . | . . . . Parts Built . | . . . . Authchips . | . . . . Time . | . . . . Total Part Build Rating . | . . . . Parts Repaired . | . . . . Time . | . . . . Parts Recycled . | . . . . Recycled Matter . | . . . . Retrieved Matter . | . . . . Retrieved Components . | . . . . Parts Scanalyzed . | . . . . Part Schematics Acquired . | . . . . Parts Damaged . | . . . . Bothacking | -11 -10 -9 -9 ------------ Run | Jun Mat Mat Sto Used RIF Installer . | . . . . Robots Hacked . | . . . . Non-combat . | . . . . Combat . | . . . . Robot Hacks Applied . | . . . . Relay Couplers Released . | . . . . Fabnet Peak Effective % . | . . . . Robots Rewired . | . . . . Allies Hacked . | . . . . Hacks Repelled . | . . . . Allies | -11 -10 -9 -9 -------- Run | Jun Mat Mat Sto Total Allies . | . . . . Largest Group . | . . . . Highest-Rated Group . | . . . . Highest-Rated Ally . | . . . . Total Orders . | . . . . Ally Attacks . | . . . . Total Damage . | . . . . Kills . | . . . . Allies Corrupted . | . . . . Allies Melted . | . . . . Intel | -11 -10 -9 -9 ------- Run | Jun Mat Mat Sto Robot Analysis Total . | . . . . Derelict Logs Recovered . | . . . . Drone Launches . | . . . . Drone Recoveries . | . . . . Exploration | -11 -10 -9 -9 ------------- Run | Jun Mat Mat Sto Turns Passed 1157 | 81 230 562 284 Spaces Moved 722 | 69 195 349 109 Core 178 | 5 . 173 . Treads . | . . . . Legs . | . . . . Wheels 544 | 64 195 176 109 Hover . | . . . . Flight . | . . . . Fastest Speed 50 | 50 95 95 85 Average Speed 118 | 87 95 147 88 Slowest Speed 200 | 95 95 200 95 Overloaded Moves . | . . . . Propulsion Burnouts . | . . . . Robots Hopped . | . . . . Cave-ins Triggered . | . . . . Exploration Rate (%) 19 | 5 27 24 22 Regions Visited 3 Branch Regions 1 Pre-discovered Areas . | . . . . Known Exits Taken . | . . . . Unknown Exits Taken 3 | 1 1 1 . Scrap Searched . | . . . . Spaces Dug . | . . . . Terrain Destroyed . | . . . . Melee . | . . . . Projectile . | . . . . AOE . | . . . . Terrain Rammed . | . . . . Walls Destroyed . | . . . . Machines Disabled . | . . . . Actions | -11 -10 -9 -9 --------- Run | Jun Mat Mat Sto Total 895 | 89 223 372 211 Wait 46 | 8 11 . 27 Move 719 | 68 194 348 109 Hop . | . . . . Pick Up 28 | 8 5 7 8 Fast Attach . | . . . . Attach 21 | 5 3 3 10 Detach . | . . . . Swap . | . . . . Drop 3 | . 1 1 1 Fire 77 | . 9 13 55 Melee . | . . . . Ram 1 | . . . 1 Kick . | . . . . Crush . | . . . . Escape Stasis . | . . . . Rewire . | . . . . Trap . | . . . . Miscellaneous . | . . . . Route ------- -11/Junkyard -10/Materials -9/Materials -9/Storage History --------- Turn | Location | Event 16 | -11/Junkyard | Discovered new exit (range 16) 82 | -11/Junkyard | Entered Materials 295 | -10/Materials | Discovered new exit (range 3) 305 | -10/Materials | Build established: Mutant 312 | -10/Materials | Entered another Materials area 312 | -9/Materials | Evolved 2 slots: Utility x2 783 | -9/Materials | Discovered new exit (range 7) 874 | -9/Materials | Entered Storage 1002 | -9/Storage | Core integrity fell below 50% 1035 | -9/Storage | Lost 8 parts (1p2n1u4w) 1141 | -9/Storage | Core integrity fell below 20% 1158 | -9/Storage | Destroyed by Y-45 Defender with Beam Rifle Last Messages --------------- 01131_ R-06 Scavenger collects Lgt. Treads. 01133_ K-01 Serf cleans the Storage Shell. 01134_ K-01 Serf destroyed. 01134_ R-06 Scavenger collects Wheel. 01136_ Beam Rifle destroyed. 01136_ K-01 Serf collects debris. 01137_ R-06 Scavenger collects Med. Matter Pod. 01139_ Targeting Computer destroyed. 01139_ K-01 Serf collects debris. 01140_ Y-45 Defender suffers critical hit (Burn). 01142_ Arm. Wheel destroyed. 01143_ Targeting Computer destroyed. 01144_ K-01 Serf cleans the Storage Shell. 01146_ Y-45 Defender critical meltdown. 01146_ Lgt. Armor Plating melted. 01148_ K-01 Serf cleans the Storage Shell. 01150_ G-34 Mercenary suffers critical hit (Burn). 01151_ K-01 Serf cleans the Storage Shell. 01155_ Beam Rifle destroyed. 01157_ Slammed into Y-45 Defender. Map ----- +----------------------------------------------------+ | == T#?????????????#?R????????????????????????? | | == "#????????????##" "###????????????????????? | | #????????????# #????????????????????? | | """"" ############## #????????????????????? | | """"" + +% ! # """ ?????????????????????? | | """"" ###### ## """ ?????????????????????? | | #????# """%!## ?"" ??????????????????????? | | #########??### """%%## ? ??????????????????????? | | #?????###### / """ %#####+########???????????????? | | #?????#"""## # % %/ / ????????? | | #######"Y"## ############ ############+###???????? | | #??????# #??# ??????? | | ############ #??????# #??# ?????????? | | ###????????# ######## #??# ????????????? | | ##????##### #### ##??????????????? | | ##????# "#??????????????? | | ?????????? T#??????????????? | | ?????????? ################ "#??????????????? | | ???????????????????????? # ##??????????????? | | ????????????????????????? # #???????????????? | | ??????????????????????????" # ####### ????? | | ??????????????????????????" # #???? | | ???????????????????#??????" %+* #???? | | ???????????????????#r""""?" # #???? | | ???????????????????#rg!b""" ##+##+##### ????? | | ???????????????????# @Y #???????????? #????? | | ???????????????????###########???????????????????? | | ?????????????????????????????????????????????????? | | ?????????????????????????????????????????????????? | | ?????????????????????????????????????????????????? | | ?????????????????????????????????????????????????? | | ?????????????????????????????????????????????????? | | ?????????????????????????????????????????????????? | | ?????????????????????????????????????????????????? | | ?????????????????????????????????????????????????? | | ?????????????????????????????????????????????????? | | ?????????????????????????????????????????????????? | | ?????????????????????????????????????????????????? | | ?????????????????????????????????????????????????? | | ?????????????????????????????????????????????????? | | ?????????????????????????????????????????????????? | | ?????????????????????????????????????????????????? | | ?????????????????????????????????????????????????? | | ?????????????????????????????????????????????????? | | ?????????????????????????????????????????????????? | | ?????????????????????????????????????????????????? | | ?????????????????????????????????????????????????? | | ?????????????????????????????????????????????????? | | ?????????????????????????????????????????????????? | | ?????????????????????????????????????????????????? | +----------------------------------------------------+ Best States ------------- Heat Dissipation 28 Energy Generation 10 Energy Capacity 250 Matter Stores 300 Matter Capacity 300 Sight Range 16 Terrain Scan Density 10 Utility Shielding 33 Evasion (%) 44 Targeting Accuracy 16 Item Schematics ----------------- None Robot Schematics ------------------ None Fabricated ------------ Nothing Alien Tech Used ----------------- None Achievements -------------- None Challenges ------------ None Game ------ Seed PowerDimensionalRay Manual? 0 Play Time 00:14:02 Cumulative 115.2 hours Start 2023.12.26 @ 15:49:00 End 2023.12.26 @ 16:03:51 Sessions 1 Manual Loads 0 Difficulty Rogue Special Mode None Game No. 107 Rogue 107 Adventurer 0 Explorer 0 Win Type - Total 0 Types 0/0/0/0/0/0/0/0/0 Lore% 35 Gallery% 40 Achievement% 30 Wizard Run 0 Options --------- ASCII 0 Keyboard 0 Movement Arrows Keybinds 0 Fullscreen 1 Font 18/SmallcapsGlow Map View 76x50 Tactical HUD 1 Map Filters NONE Filters NONE Steam 1 RUN: 65310243-40a9-4a42-9b7f-c786040a40c9